bitfinex-derivatives/quotes_ETHF0:USTF0_20251009
["timestamp","ask_amount","ask_price","bid_price","bid_amount"]
[1760047136712,0.43340459,4361.4,4361.3,0.85581]
[1760047136913,3.90031929,4361.4,4361.3,0.85581]
[1760047137115,3.90031929,4361.4,4361.3,1.19611]
[1760047138214,3.46691929,4361.4,4361.3,1.19611]
[1760047138411,2.94545203,4361.4,4361.3,1.19611]
[1760047138613,3.16465203,4361.4,4361.3,1.19611]
[1760047143518,3.37885203,4361.4,4361.3,1.19611]
[1760047144415,0.43340459,4361.4,4361.3,1.19611]
[1760047145224,0.95530403,4361.4,4361.3,1.19611]
[1760047145418,4.6763871,4361.4,4361.3,0.75281]
[1760047145724,4.6763871,4361.4,4361.3,0.3403]
[1760047147322,4.6763871,4361.4,4361.3,0.75281]
[1760047148016,0.68173,4361.1,4361.0,0.3375]
[1760047148322,1.11245,4360.9,4360.8,0.41255]
[1760047148522,1.11245,4360.9,4360.8,0.75005]
[1760047148724,4.07783886,4360.9,4360.8,0.75005]
[1760047149024,4.07783886,4360.9,4360.8,0.96265]
[1760047149432,3.66528886,4360.9,4360.8,0.75005]
[1760047154027,3.89428886,4360.9,4360.8,0.75005]
[1760047154829,3.89428886,4360.9,4360.8,0.96265]
[1760047157730,4.41648316,4360.9,4360.8,0.96265]
[1760047159224,4.41648316,4360.9,4360.8,0.75005]
[1760047159425,0.2692,4360.3,4360.1,0.3375]
[1760047159619,1.11253,4360.0,4359.7,0.41266]
[1760047159930,1.93463143,4360.0,4359.5,0.3375]
[1760047160221,9.85112591,4360.0,4359.1,0.3375]
[1760047160424,0.4307,4358.7,4358.6,0.96287]
[1760047160619,0.6999,4358.7,4358.6,1.18997]
[1760047160820,0.4307,4358.7,4358.6,1.18997]
[1760047161221,3.61672262,4358.7,4358.6,0.75027]
[1760047161423,3.61672262,4358.7,4358.6,0.75232282]
[1760047161619,3.61672262,4358.7,4358.6,0.00205282]
[1760047161820,3.86962212,4358.7,4358.6,0.55215282]
[1760047162023,4.09862212,4358.7,4358.6,0.77925282]
[1760047162529,3.34752262,4358.7,4358.6,0.77925282]
[1760047162929,0.4307,4359.7,4359.6,0.96277]
[1760047163125,0.9522278,4359.7,4359.6,1.18987]
[1760047163323,3.96599346,4359.7,4359.6,1.18987]
[1760047164122,3.44446566,4359.7,4359.6,1.18987]
[1760047164731,3.01376566,4359.7,4359.6,1.18987]
[1760047165732,0.2134,4359.7,4359.6,1.18987]
[1760047166128,3.23036615,4359.7,4359.6,1.18987]
[1760047179741,3.72356615,4359.7,4359.6,0.75017]
[1760047179944,3.72356615,4359.7,4359.6,0.41267]
[1760047180640,3.72356615,4359.7,4359.6,0.74737]
[1760047181541,3.95256615,4359.7,4359.6,0.74737]
[1760047184239,3.95256615,4359.7,4359.6,0.96657]
[1760047188352,3.45936615,4359.7,4359.6,1.19347]
[1760047188645,0.7073,4360.2,4360.1,1.20242]
[1760047188844,0.95884019,4360.2,4360.1,1.20242]
[1760047189040,4.12040508,4360.2,4360.1,1.20242]
[1760047190740,3.90490508,4360.2,4360.1,1.20242]
[1760047190944,3.67590508,4360.2,4360.1,1.20242]
[1760047191342,3.45280508,4360.2,4360.1,1.20242]
[1760047193750,0.52024019,4360.2,4360.1,1.20242]
[1760047196748,0.7073,4361.1,4361.0,1.10154]
[1760047196948,1.39291915,4361.1,4361.0,1.10154]
[1760047197146,4.37971314,4361.1,4361.0,0.97544]
[1760047197346,4.21471314,4361.1,4361.0,0.97544]
[1760047197548,4.44371314,4361.1,4361.0,1.10154]
[1760047198451,4.21471314,4361.1,4361.0,1.10154]
[1760047199155,4.44371314,4361.1,4361.0,1.10154]
[1760047200359,3.50741314,4361.1,4361.0,1.32844]
[1760047200548,4.59e-06,4361.4,4361.1,0.3344]
[1760047200750,3.44748206,4361.1,4360.9,0.41255]
[1760047201053,0.52018616,4361.3,4361.2,0.41252]
[1760047201054,3.00888206,4361.3,4361.2,0.41252]
[1760047201252,4.59e-06,4361.4,4361.3,0.3344]
[1760047201652,4.59e-06,4361.4,4361.3,5.0]
[1760047203059,0.22310459,4361.4,4361.3,5.4554]
[1760047203458,0.22310459,4361.4,4361.3,5.7898]
[1760047203756,4.59e-06,4361.4,4361.3,0.4554]
[1760047204150,4.59e-06,4361.4,4361.3,5.6844]
[1760047204652,4.59e-06,4361.4,4361.3,0.4554]
[1760047204955,3.62769098,4361.4,4361.3,0.4554]
[1760047205254,3.62769098,4361.4,4361.3,0.5629]
[1760047205454,3.62769098,4361.4,4361.3,0.3344]
[1760047205751,3.62769098,4361.4,4361.2,0.41252]
[1760047206059,0.7189,4360.8,4360.7,0.41256]
[1760047206658,3.71768182,4360.8,4360.7,0.72826]
[1760047206855,4.13024182,4360.8,4360.5,0.41258]
[1760047207052,0.791,4360.5,4359.2,1.03176]
[1760047207256,0.791,4360.5,4359.6,0.3157]
[1760047207257,0.7189,4359.7,4359.6,0.3157]
[1760047207652,3.64577701,4359.7,4359.6,0.72837]
[1760047208057,3.64577701,4359.7,4359.6,0.96057]
[1760047208456,2.92687701,4359.7,4359.6,1.18597]
[1760047208752,0.7189,4360.5,4360.4,0.96049]
[1760047208958,1.1987468,4360.5,4360.4,1.18589]
[1760047209260,4.13755743,4360.5,4360.4,1.18589]
[1760047209461,4.40665743,4360.5,4360.4,1.18589]
[1760047209860,4.40665743,4360.5,4360.4,0.96049]
[1760047210055,4.40665743,4360.5,4360.3,0.4126]
[1760047210056,0.4917,4360.4,4360.3,0.4126]
[1760047210252,0.4917,4360.4,4359.2,1.03176]
[1760047210253,0.7880468,4360.4,4359.8,0.3157]
[1760047210556,0.7189,4359.7,4359.6,0.72837]
[1760047212457,0.7189,4359.7,4359.6,0.96057]
[1760047213265,0.4498,4359.7,4359.6,0.96057]
[1760047213466,0.4498,4359.7,4359.6,1.18597]
[1760047213965,4.23493377,4359.7,4359.6,0.41267]
[1760047214167,3.71743329,4359.7,4359.6,0.41267]
[1760047214361,3.71743329,4359.7,4359.6,0.72837]
[1760047214864,3.71743329,4359.7,4359.6,0.96057]
[1760047218969,3.71743329,4359.7,4359.1,0.41271]
[1760047218970,0.7189,4359.2,4359.1,0.41271]
[1760047219265,0.7189,4359.0,4358.9,0.96063]
[1760047219466,0.6798,4359.0,4358.9,1.18603]
[1760047219668,3.64671209,4359.0,4358.9,1.18603]
[1760047221165,0.23,4359.0,4358.9,1.18603]
[1760047221667,0.2226,4359.6,4359.5,0.77158]
[1760047221872,0.4526,4359.6,4359.5,1.31268]
[1760047222075,3.64958186,4359.6,4359.5,1.31268]
[1760047222567,3.41958186,4359.6,4359.5,1.31268]
[1760047222971,3.64958186,4359.6,4359.5,1.31268]
[1760047226276,4.06225186,4359.6,4359.5,1.31268]
[1760047226675,3.64958186,4359.6,4359.5,1.31268]
[1760047226972,3.91868186,4359.6,4359.5,1.31268]
[1760047227776,4.33135186,4359.6,4359.5,1.31268]
[1760047228371,4.33135186,4359.6,4358.5,2.19055]
[1760047228372,0.4498,4357.6,4357.5,0.3589]
[1760047228576,0.7703,4357.6,4357.5,0.99717]
[1760047229375,0.77225404,4357.6,4357.5,0.99946568]
[1760047230272,0.77225404,4357.6,4357.5,1.31516568]
[1760047234474,0.00195404,4357.6,4357.5,1.31516568]
[1760047234682,0.22455404,4357.6,4357.5,1.31516568]
[1760047235575,0.00195404,4357.6,4357.5,1.31516568]
[1760047237578,0.22455404,4357.6,4357.5,1.31516568]
[1760047237984,0.00195404,4357.6,4357.5,1.31516568]
[1760047238883,0.23425404,4357.6,4357.5,1.31516568]
[1760047239080,0.57645404,4357.6,4357.5,1.31516568]
[1760047240684,0.80555404,4357.6,4357.5,1.31516568]
[1760047241079,0.80555404,4357.6,4357.5,1.18846568]
[1760047241384,0.80555404,4357.6,4357.5,1.31616568]
[1760047242984,0.46335404,4357.6,4357.5,1.31616568]
[1760047243181,0.00195404,4357.6,4357.5,1.31616568]
[1760047246276,0.23425404,4357.6,4357.5,1.31616568]
[1760047246481,0.80265404,4357.6,4357.5,1.31616568]
[1760047246786,0.80265404,4357.6,4357.5,1.18846568]
[1760047247181,0.80265404,4357.6,4357.5,1.31936568]
[1760047247682,9.22996479,4357.6,4357.5,0.00229568]
[1760047248283,9.45996479,4357.6,4357.5,0.00229568]
[1760047248478,9.98066414,4357.6,4357.5,0.00229568]
[1760047250786,9.56780414,4357.6,4357.5,0.00229568]
[1760047251482,4.33780414,4357.6,4357.5,0.00229568]
[1760047251683,4.04710479,4357.6,4357.5,0.54459568]
[1760047252382,4.04710479,4357.6,4357.5,0.90579568]
[1760047252888,3.81710479,4357.6,4357.5,0.90579568]
[1760047253086,4.04710479,4357.6,4357.5,0.90579568]
[1760047254091,3.24870479,4357.6,4357.5,0.90579568]
[1760047254387,0.00195404,4357.6,4357.5,0.90579568]
[1760047256991,0.00195404,4357.6,4357.5,1.31866568]
[1760047258400,0.21485404,4357.6,4357.5,1.31866568]
[1760047258600,0.78325404,4357.6,4357.5,1.31866568]
[1760047258896,0.43845404,4357.6,4357.5,1.31866568]
[1760047259402,0.78325404,4357.6,4357.5,1.31866568]
[1760047259792,0.21485404,4357.6,4357.5,1.31866568]
[1760047259994,0.00195404,4357.6,4357.5,1.31866568]
[1760047260292,0.21485404,4357.6,4357.5,1.31866568]
[1760047260497,0.00195404,4357.6,4357.5,1.31866568]
[1760047262298,0.21485404,4357.6,4357.5,1.31866568]
[1760047263500,0.55965404,4357.6,4357.5,1.31866568]
[1760047263897,0.21485404,4357.6,4357.5,1.31866568]
[1760047266103,0.00195404,4357.6,4357.5,1.31866568]
[1760047268300,0.21975404,4357.6,4357.5,1.31866568]
[1760047271508,0.00195404,4357.6,4357.5,1.31866568]
[1760047272602,0.56295404,4357.6,4357.5,1.31866568]
[1760047272807,0.79205404,4357.6,4357.5,1.31866568]
[1760047277808,0.79205404,4357.6,4357.5,1.18776568]
[1760047278508,3.80728937,4357.6,4357.5,0.41516568]
[1760047278714,9.9729261,4357.6,4357.5,0.00229568]
[1760047279210,9.9729261,4357.6,4357.5,0.41516568]
[1760047279612,9.5600661,4357.6,4357.5,0.41516568]
[1760047280314,9.3310661,4357.6,4357.5,0.41516568]
[1760047280514,9.5600661,4357.6,4357.5,0.41516568]
[1760047280812,3.9878661,4357.6,4357.5,1.31816568]
[1760047281114,3.46408937,4357.6,4357.5,1.31816568]
[1760047281413,4.33119412,4357.6,4357.5,0.96746568]
[1760047282117,4.33119412,4357.6,4357.5,1.19236568]
[1760047282312,4.56019412,4357.6,4357.5,1.19236568]
[1760047285420,4.33119412,4357.6,4357.5,0.96746568]
[1760047285719,4.56019412,4357.6,4357.5,0.96746568]
[1760047287217,0.7901,4356.9,4356.8,0.41293]
[1760047287421,1.54321096,4356.9,4356.8,0.41293]
[1760047287620,4.55947576,4356.9,4356.8,0.41293]
[1760047288223,4.55947576,4356.9,4356.8,0.4148334]
[1760047288922,4.55947576,4356.9,4356.8,1.1920334]
[1760047289915,3.8063648,4356.9,4356.8,1.1920334]
[1760047290119,4.0353648,4356.9,4356.8,1.1920334]
[1760047291626,0.7901,4356.9,4356.8,1.1920334]
[1760047292729,0.2178,4356.9,4356.8,1.1920334]
[1760047292923,0.3538,4357.1,4357.0,0.98332]
[1760047293124,0.3538,4357.1,4357.0,1.31592]
[1760047293426,3.3217789,4357.1,4357.0,1.31592]
[1760047294228,3.6649789,4357.1,4357.0,1.31592]
[1760047294827,3.8940789,4357.1,4357.0,1.31592]
[1760047295028,3.9870789,4357.1,4357.0,1.31592]
[1760047295327,3.7580789,4357.1,4357.0,1.31592]
[1760047295527,3.9870789,4357.1,4357.0,1.31592]
[1760047297732,3.4147789,4357.1,4357.0,1.31592]
[1760047298032,3.1969789,4357.1,4357.0,1.31592]
[1760047298831,3.4271789,4357.1,4357.0,1.31592]
[1760047299026,3.1981789,4357.1,4357.0,1.31592]
[1760047299334,0.5487,4357.4,4357.3,1.18409]
[1760047299532,1.30099965,4357.4,4357.3,1.18409]
[1760047299733,4.24908604,4357.4,4357.3,1.18409]
[1760047300535,4.46058604,4357.4,4357.3,1.18409]
[1760047301034,4.23158604,4357.4,4357.3,1.18409]
[1760047301234,4.46058604,4357.4,4357.3,1.18409]
[1760047302636,4.46058604,4357.4,4357.3,0.41289]
[1760047304229,4.46058604,4357.4,4356.8,0.0019034]
[1760047304230,0.3185,4357.2,4356.8,0.0019034]
[1760047304534,0.7602,4356.9,4356.8,0.4148434]
[1760047304731,0.9892,4356.9,4356.8,0.4148434]
[1760047304936,3.96680686,4356.9,4356.8,0.4148434]
[1760047312048,4.49316527,4356.9,4356.8,0.4148434]
[1760047316844,4.26416527,4356.9,4356.8,1.1848434]
[1760047317045,4.49416527,4356.9,4356.8,1.1848434]
[1760047317747,4.26416527,4356.9,4356.8,1.1848434]
[1760047317950,4.49416527,4356.9,4356.8,1.1848434]
[1760047321367,3.96780686,4356.9,4356.8,1.1848434]
[1760047321662,4.49460805,4356.9,4356.8,1.1848434]
[1760047324163,4.26460805,4356.9,4356.8,1.1848434]
[1760047324358,4.49460805,4356.9,4356.8,1.1848434]
[1760047325370,4.26460805,4356.9,4356.8,1.1848434]
[1760047325566,3.64930686,4356.9,4356.8,1.1848434]
[1760047325764,3.41930686,4356.9,4356.8,1.1848434]
[1760047325968,3.96490686,4356.9,4356.8,1.1848434]
[1760047327267,0.1377,4356.5,4356.2,1.03249]
[1760047327470,0.7722,4355.8,4355.7,0.41304]
[1760047327663,1.0022,4355.8,4355.7,0.41304]
[1760047327863,4.49959743,4355.8,4355.7,0.41304]
[1760047328268,3.97262023,4355.8,4355.7,0.41507051]
[1760047329773,2.97042023,4355.8,4355.7,1.16567051]
[1760047329965,3.20042023,4355.8,4355.7,1.16567051]
[1760047330164,3.43112023,4355.8,4355.7,1.16567051]
[1760047333670,3.74672023,4355.8,4355.7,1.16567051]
[1760047335777,3.97262023,4355.8,4355.7,1.16567051]
[1760047338069,3.97262023,4355.8,4355.7,0.41507051]
[1760047338572,1.18525,4355.6,4355.5,0.41306]
[1760047338869,1.41525,4355.6,4355.5,0.41306]
[1760047339073,4.33340086,4355.6,4355.5,0.41306]
[1760047339274,3.92035086,4355.6,4355.5,0.41306]
[1760047339462,3.92035086,4355.6,4355.5,0.41531111]
[1760047340070,2.91815086,4355.6,4355.5,1.29291111]
[1760047341780,3.14885086,4355.6,4355.5,1.29291111]
[1760047341979,0.7722,4356.4,4356.3,0.41298]
[1760047342274,0.6866,4356.4,4356.3,1.16358]
[1760047342476,3.92281685,4356.4,4356.3,1.16358]
[1760047342868,3.92281685,4356.4,4356.3,0.41298]
[1760047344180,4.44778092,4356.4,4356.3,0.41298]
[1760047344572,0.7722,4356.3,4356.2,0.41298]
[1760047344873,0.7722,4356.3,4355.5,0.00225111]
[1760047344874,0.7722,4356.1,4356.0,0.413]
[1760047345077,1.52716407,4356.1,4356.0,0.413]
[1760047345272,4.53025812,4356.1,4356.0,0.413]
[1760047346271,4.53025812,4356.1,4356.0,0.9516]
[1760047346674,4.00529405,4356.1,4356.0,0.9516]
[1760047347084,3.77529405,4356.1,4356.0,0.9516]
[1760047347275,4.00529405,4356.1,4356.0,1.1636]
[1760047347578,0.1377,4357.0,4356.0,0.8776]
[1760047347778,0.3156,4357.4,4356.9,0.41293]
[1760047347977,0.3156,4357.9,4357.5,1.29047]
[1760047348184,0.46265404,4357.6,4357.5,1.29047]
[1760047348485,0.46265404,4357.6,4357.5,1.16347]
[1760047348486,4.04876764,4357.6,4357.5,1.16347]
[1760047348882,0.5943,4357.5,4357.4,0.41288]
[1760047349178,0.9099,4357.5,4357.4,0.41288]
[1760047349385,3.90050312,4357.5,4357.4,0.41288]
[1760047349879,3.44720312,4357.5,4357.4,1.16348]
[1760047350085,3.67720312,4357.5,4357.4,1.16348]
[1760047350481,0.00195404,4357.6,4357.5,0.127]
[1760047350681,0.7722,4358.6,4358.5,0.63337]
[1760047350880,0.7722,4359.0,4358.9,0.95134]
[1760047351075,1.29651683,4359.0,4358.9,1.16334]
[1760047351281,3.43816222,4359.0,4358.9,1.16334]
[1760047351676,3.9825533,4359.0,4358.9,1.16517783]
[1760047353587,3.2110533,4359.0,4358.9,1.16517783]
[1760047353786,0.5943,4360.0,4359.9,0.95124]
[1760047353988,0.8243,4360.0,4359.9,0.41264]
[1760047354191,3.78164472,4360.0,4359.9,0.41264]
[1760047354388,4.09724472,4360.0,4359.9,0.41264]
[1760047354688,4.09946451,4360.0,4359.9,0.41264]
[1760047354886,3.19026451,4360.0,4359.9,1.16324]
[1760047355184,0.3156,4359.9,4359.6,0.41267]
[1760047355388,0.7722,4359.7,4359.6,0.41267]
[1760047355779,3.70423095,4359.7,4359.6,0.41267]
[1760047356185,0.4566,4359.7,4359.6,1.20447]
[1760047356491,0.22541979,4360.0,4359.9,1.20814]
[1760047356689,0.87541979,4360.0,4359.9,1.20814]
[1760047356892,3.90425525,4360.0,4359.9,1.20814]
[1760047358289,0.00221979,4360.0,4359.9,1.20814]
[1760047359694,0.22541979,4360.0,4359.9,1.20814]
[1760047360491,0.22541979,4360.0,4359.5,1.1666]
[1760047360492,0.5679,4361.0,4360.7,0.41256]
[1760047360695,0.433,4360.8,4360.7,0.41256]
[1760047360890,0.7662,4360.8,4360.7,0.41256]
[1760047361090,3.73649318,4360.8,4360.7,1.20806]
[1760047361293,3.63329318,4360.8,4360.7,1.20806]
[1760047361494,3.63539478,4360.8,4360.7,1.20806]
[1760047362393,3.96859478,4360.8,4360.7,1.20806]
[1760047363300,0.0021016,4360.8,4360.7,1.20806]
[1760047363489,3.73934689,4360.8,4360.7,0.98346]
[1760047363689,3.73934689,4360.8,4360.6,0.41257]
[1760047363690,4.38090689,4360.8,4360.6,0.41257]
[1760047363893,0.7662,4360.1,4360.0,0.3592]
[1760047364193,3.73934689,4360.8,4360.7,0.86147]
[1760047364396,0.7683016,4360.8,4360.7,1.20807]
[1760047364598,3.70479464,4360.8,4360.7,1.20807]
[1760047365392,0.5865,4360.5,4360.2,0.3375]
[1760047365596,0.7928,4360.4,4360.3,0.4126]
[1760047365795,0.7928,4359.8,4359.7,0.3375]
[1760047365998,3.43168872,4360.4,4360.3,0.7822]
[1760047366199,0.4553,4360.4,4360.3,0.7822]
[1760047366399,3.49957666,4360.4,4360.3,0.7822]
[1760047366897,0.343,4360.7,4360.3,1.36901]
[1760047367199,0.0021016,4360.8,4360.7,0.7822]
[1760047368100,0.0021016,4360.8,4360.7,5.7822]
[1760047368601,0.7949016,4360.8,4360.7,0.7822]
[1760047369098,0.0021016,4360.8,4360.7,0.7822]
[1760047369297,0.4519016,4360.8,4360.7,0.7822]
[1760047369601,0.7949016,4360.8,4360.7,0.7822]
[1760047369799,0.4519016,4360.8,4360.7,0.7822]
[1760047370099,0.2284016,4360.8,4360.7,0.7822]
[1760047370299,0.7949016,4360.8,4360.7,0.7822]
[1760047371000,3.77799472,4360.8,4360.6,0.41257]
[1760047371197,3.77799472,4360.8,4359.6,1.03168]
[1760047371198,0.9295,4360.5,4359.8,0.5675]
[1760047371392,0.9295,4360.5,4360.4,0.2165]
[1760047371393,0.5865,4360.5,4360.4,0.2165]
[1760047371599,0.4498,4360.5,4360.4,0.7822]
[1760047371793,3.37570603,4360.5,4360.4,0.7822]
[1760047373304,0.0021016,4360.8,4360.7,0.7822]
[1760047374201,0.0021016,4360.8,4360.7,1.19477]
[1760047375906,0.2284016,4360.8,4360.7,1.19477]
[1760047376302,3.76196234,4360.8,4360.7,0.554]
[1760047376499,3.41896234,4360.8,4360.7,0.2165]
[1760047376701,3.41896234,4360.8,4360.7,0.554]
[1760047377102,3.76196234,4360.8,4360.7,0.554]
[1760047377402,0.0021016,4360.8,4360.7,0.7822]
[1760047377707,0.7949016,4360.8,4360.7,0.7822]
[1760047378108,4.74527101,4360.8,4360.1,1.03157]
[1760047378312,0.5693,4360.2,4360.1,1.19482]
[1760047378908,0.7928,4360.2,4360.1,1.19482]
[1760047379405,0.7928,4360.1,4360.0,0.41263]
[1760047379700,0.7928,4360.1,4360.0,0.85733]
[1760047379905,2.98370433,4360.1,4360.0,1.32503]
[1760047380102,0.5693,4360.5,4360.4,0.41259]
[1760047380309,1.09069779,4360.5,4360.4,1.19479]
[1760047380508,4.01091007,4360.5,4360.4,1.19479]
[1760047381511,4.23441007,4360.5,4360.4,1.19479]
[1760047381714,4.37111007,4360.5,4360.4,0.41259]
[1760047385005,3.57831007,4360.5,4360.4,0.41259]
[1760047385210,4.37111007,4360.5,4360.4,0.62909]
[1760047386213,4.32521007,4360.5,4360.4,0.41259]
[1760047386716,4.32521007,4360.5,4360.4,0.64339]
[1760047387016,4.32521007,4360.5,4360.4,0.41259]
[1760047387714,4.55521007,4360.5,4360.4,0.41259]
[1760047388107,4.55521007,4360.5,4360.4,0.64339]
[1760047388314,4.41851007,4360.5,4360.4,1.20419]
[1760047389215,3.88221007,4360.5,4360.4,1.20419]
[1760047389411,0.52139779,4360.5,4360.4,1.20419]
[1760047389610,0.52139779,4360.5,4360.4,6.20419]
[1760047389818,0.0021016,4360.8,4360.7,0.41257]
[1760047390011,0.0021016,4360.8,4360.7,1.20417]
[1760047390411,0.4265,4361.6,4361.5,0.86099]
[1760047390612,0.7469,4361.6,4361.5,1.20409]
[1760047391313,0.7469,4361.6,4361.5,0.2308]
[1760047391513,0.8836,4361.5,4361.4,0.4125]
[1760047391813,0.8836,4361.5,4361.4,0.9864]
[1760047392117,0.4265,4361.5,4361.4,1.2041]
[1760047392318,0.2106,4361.5,4361.4,1.2041]
[1760047392509,0.00251188,4361.6,4361.5,0.9308]
[1760047392709,0.74941188,4361.6,4361.5,0.4485]
[1760047393217,0.74941188,4361.6,4361.5,0.7916]
[1760047394113,0.42901188,4361.6,4361.5,0.9308]
[1760047394312,0.21311188,4361.6,4361.5,0.9308]
[1760047395815,0.53351188,4361.6,4361.5,0.9308]
[1760047396709,0.74941188,4361.6,4361.5,0.7916]
[1760047397719,0.74941188,4361.6,4361.5,1.20409]
[1760047401327,0.00251188,4361.6,4361.5,1.34329]
[1760047401524,0.21311188,4361.6,4361.5,1.34329]
[1760047401830,0.53351188,4361.6,4361.5,1.34329]
[1760047402215,0.21311188,4361.6,4361.5,1.34329]
[1760047402815,0.00251188,4361.6,4361.5,1.34329]
[1760047403215,3.76754427,4361.6,4361.5,1.20409]
[1760047405937,0.00251188,4361.6,4361.5,1.34329]
[1760047409835,0.00251188,4361.6,4361.5,42.14329]
[1760047410438,0.00251188,4361.6,4361.5,42.37229]
[1760047411836,0.4485,4362.9,4362.8,0.2308]
[1760047412029,0.4485,4362.9,4362.8,0.64317]
[1760047412336,3.73642895,4362.9,4362.8,0.41237]
[1760047412837,3.73842655,4362.9,4362.8,0.4144817]
[1760047413742,9.15078655,4362.9,4362.8,0.0021117]
[1760047414038,9.15078655,4362.9,4362.8,0.4144817]
[1760047414241,9.66606841,4362.9,4362.8,0.4144817]
[1760047414839,9.15078655,4362.9,4362.8,0.4144817]
[1760047415239,9.66610375,4362.9,4362.8,0.4144817]
[1760047415443,9.66610375,4362.9,4362.8,0.0021117]
[1760047415648,9.66610375,4362.9,4362.8,0.4144817]
[1760047417832,9.25374375,4362.9,4362.8,0.6452817]
[1760047418336,9.25374375,4362.9,4362.8,0.4144817]
[1760047419144,9.66610375,4362.9,4362.8,0.4144817]
[1760047419446,9.25374375,4362.9,4362.8,0.4144817]
[1760047419748,9.25374375,4362.9,4362.8,0.6443817]
[1760047420244,9.25374375,4362.9,4362.8,0.9885817]
[1760047420441,9.25374375,4362.9,4362.8,1.2091817]
[1760047421443,9.25374375,4362.9,4362.8,0.8649817]
[1760047422542,4.25374375,4362.9,4362.8,0.8649817]
[1760047423944,4.25374375,4362.9,4362.8,0.6443817]
[1760047426744,4.25374375,4362.9,4362.8,0.4144817]
[1760047428152,4.66610375,4362.9,4362.8,0.4144817]
[1760047428445,4.48274375,4362.9,4362.8,0.4144817]
[1760047429550,4.25374375,4362.9,4362.8,0.9606817]
[1760047429852,4.48274375,4362.9,4362.8,0.6341817]
[1760047430540,4.48274375,4362.9,4362.8,0.9606817]
[1760047431451,3.94644375,4362.9,4362.8,1.1743817]
[1760047431851,4.28754375,4362.9,4362.8,1.1743817]
[1760047432446,4.51454375,4362.9,4362.8,1.1743817]
[1760047432646,4.51454375,4362.9,4362.8,0.8478817]
[1760047433246,4.51454375,4362.9,4362.8,1.1743817]
[1760047439855,4.92690375,4362.9,4362.8,0.4355117]
[1760047440059,4.92690375,4362.9,4362.8,0.0021117]
[1760047440560,4.92690375,4362.9,4362.8,0.4144817]
[1760047441357,4.92690375,4362.9,4362.8,0.0021117]
[1760047441557,0.3411,4361.9,4361.7,0.41247]
[1760047441752,0.6715,4361.8,4361.7,0.41247]
[1760047441951,4.15561452,4361.8,4361.7,0.41247]
[1760047442254,1.0126,4361.8,4361.1,1.03132]
[1760047442459,0.4425,4361.3,4361.2,0.95872]
[1760047442648,0.3411,4361.7,4361.3,1.44377]
[1760047442854,0.5566,4361.7,4361.6,1.17238]
[1760047443159,1.0126,4361.7,4361.6,1.17238]
[1760047443960,4.0218239,4361.7,4361.5,0.41249]
[1760047444755,0.4425,4361.4,4361.3,0.7599]
[1760047444950,1.1961,4361.4,4361.2,0.41516584]
[1760047445155,0.6715,4361.3,4361.2,0.00265584]
[1760047445357,1.0126,4361.3,4361.2,0.41517584]
[1760047445664,4.05995093,4361.3,4361.2,0.00265584]
[1760047447264,0.2219,4360.3,4360.2,0.41261]
[1760047447564,0.7825,4360.3,4360.2,0.97481]
[1760047448161,0.7825,4360.3,4360.2,0.64311]
[1760047448355,0.7825,4360.3,4360.2,0.6449419]
[1760047448659,3.70387074,4360.3,4360.2,0.0018319]
[1760047448862,3.93287074,4360.3,4360.2,0.7813319]
[1760047449560,3.93287074,4360.3,4360.2,0.0018319]
[1760047452769,3.70387074,4360.3,4360.2,0.0018319]
[1760047453064,3.70387074,4360.3,4360.2,0.7813319]
[1760047453263,3.70387074,4360.3,4360.2,0.4144419]
[1760047454967,3.93287074,4360.3,4360.2,0.4144419]
[1760047455867,3.93287074,4360.3,4360.2,0.0018319]
[1760047456663,4.34547074,4360.3,4360.2,0.0018319]
[1760047456862,4.34547074,4360.3,4359.1,0.2305]
[1760047456863,0.7825,4359.2,4359.1,0.2305]
[1760047457062,0.7825,4359.2,4359.1,1.19222]
[1760047457760,0.7825,4359.2,4359.1,1.19405669]
[1760047457966,0.78544521,4359.2,4359.1,1.19405669]
[1760047462973,0.78544521,4359.2,4359.1,0.41455669]
[1760047463172,0.78544521,4359.2,4359.1,0.64505669]
[1760047463373,0.78544521,4359.2,4359.1,1.19405669]
[1760047464072,0.5606,4359.8,4359.7,1.19216]
[1760047464376,0.7825,4359.8,4359.7,1.19216]
[1760047464567,3.71473751,4359.8,4359.7,1.19216]
[1760047465067,3.71760513,4359.8,4359.7,0.86046]
[1760047465268,3.71760513,4359.8,4359.7,0.64316]
[1760047465872,3.71760513,4359.8,4359.7,1.19216]
[1760047469668,2.93510513,4359.8,4359.7,1.19216]
[1760047469867,0.00286762,4359.8,4359.7,1.19216]
[1760047470267,0.1321,4361.5,4360.9,1.19205]
[1760047470268,0.5798,4361.0,4360.9,1.19205]
[1760047470773,3.75376731,4361.0,4360.9,1.19205]
[1760047471374,3.88882768,4361.0,4360.9,0.86035]
[1760047471574,3.88882768,4361.0,4360.9,0.64305]
[1760047472371,3.88882768,4361.0,4360.9,0.97475]
[1760047472570,3.75672768,4361.0,4360.9,1.19205]
[1760047475178,0.00296037,4361.0,4360.9,1.19205]
[1760047476174,0.00296037,4361.0,4360.9,1.42205]
[1760047476478,0.79106037,4361.0,4360.9,1.19205]
[1760047477768,0.00296037,4361.0,4360.9,1.19205]
[1760047479176,0.2319,4362.0,4361.9,1.17705]
[1760047479676,3.57202298,4362.0,4361.9,1.17705]
[1760047479876,2.99642298,4362.0,4361.9,1.17705]
[1760047480171,3.23079664,4362.0,4361.9,1.17705]
[1760047480377,3.78699664,4362.0,4361.9,1.17705]
[1760047480777,3.92359664,4362.0,4361.9,0.41245]
[1760047481781,3.92359664,4362.0,4361.9,0.63745]
[1760047481985,3.92359664,4362.0,4361.9,1.17705]
[1760047482679,0.00247366,4362.0,4361.9,1.17705]
[1760047485784,0.23,4362.8,4361.9,1.17705]
[1760047485785,0.2275,4362.8,4362.7,1.17958]
[1760047486587,0.23007952,4362.8,4362.7,1.1812787]
[1760047487285,0.00257952,4362.8,4362.7,6.4112787]
[1760047489885,0.00257952,4362.8,4362.7,1.4112787]
[1760047490091,0.55977952,4362.8,4362.7,1.4112787]
[1760047491287,0.77597952,4362.8,4362.7,0.4140787]
[1760047492190,0.77597952,4362.8,4362.7,0.6232787]
[1760047493589,0.55977952,4362.8,4362.7,1.1812787]
[1760047493794,0.00257952,4362.8,4362.7,1.1812787]
[1760047494391,0.23007952,4362.8,4362.7,1.1812787]
[1760047495591,0.00257952,4362.8,4362.7,1.1812787]